fUSD/lending_fUSD_20260225
["ID","MTS","AMOUNT","RATE_DAILY","PERIOD"]
[406673794,1772062243619,-204.0,0.00017472,2]
[406673795,1772062243630,-2200.0,0.000175,6]
[406673796,1772062243640,-204.0,0.00017521,2]
[406673797,1772062243650,-471.69,0.00017523,2]
[406673798,1772062243659,-1017.2,0.00017534,2]
[406673799,1772062243669,-204.0,0.00017559,2]
[406673800,1772062243679,-350.0,0.00017583,2]
[406673801,1772062243688,-2200.0,0.000176,6]
[406673802,1772062243698,-1946.0,0.00017626,2]
[406673803,1772062243708,-1725.32718527,0.0001764,2]
[406673804,1772062243718,-287.61899177,0.00017647,2]
[406673805,1772062243727,-844.0,0.0001768,2]
[406673806,1772062243736,-844.0,0.0001768,2]
[406673807,1772062243746,-2200.0,0.000177,6]
[406673808,1772062243755,-1090.23295473,0.00017739,2]
[406673809,1772062243765,-474.07483601,0.0001774,2]
[406673810,1772062243774,-215.49916035,0.00017798,2]
[406673811,1772062243784,-3121.0,0.000178,6]
[406673812,1772062243793,-1017.2,0.00017808,2]
[406673813,1772062243804,-500.0,0.00017808,2]
[406673814,1772062243813,-500.0,0.00017808,2]
[406673815,1772062243823,-500.0,0.00017808,2]
[406673816,1772062243833,-500.0,0.00017808,2]
[406673817,1772062243842,-500.0,0.00017808,2]
[406673818,1772062243852,-500.0,0.00017808,2]
[406673819,1772062243862,-500.0,0.00017808,2]
[406673820,1772062243871,-500.0,0.00017808,2]
[406673821,1772062243882,-500.0,0.00017808,2]
[406673822,1772062243892,-500.0,0.00017808,2]
[406673823,1772062243902,-501.17421203,0.00017808,2]
[406673824,1772062243912,-501.17421203,0.00017808,2]
[406673825,1772062243921,-501.17421203,0.00017808,2]
[406673826,1772062243931,-501.17421203,0.00017808,2]
[406673827,1772062243940,-501.17421203,0.00017808,2]
[406673828,1772062243950,-501.17421203,0.00017808,2]
[406673829,1772062243959,-506.82242836,0.00017808,2]
[406673830,1772062243968,-506.82242836,0.00017808,2]
[406673831,1772062243978,-506.82242836,0.00017808,2]
[406673832,1772062243987,-506.82242836,0.00017808,2]
[406673833,1772062243997,-506.82242836,0.00017808,2]
[406673834,1772062244006,-506.82242836,0.00017808,2]
[406673835,1772062244016,-500.0,0.00017808,2]
[406673836,1772062244025,-2568.50969261,0.0001783,2]
[406673837,1772062244035,-235.0,0.00017838,2]
[406673838,1772062244044,-200.0,0.00017856,2]
[406673839,1772062244054,-500.0,0.00017863,2]
[406673840,1772062244063,-471.70854388,0.00017871,2]
[406673841,1772062244073,-1946.0,0.00017872,2]
[406673842,1772062244082,-500.0,0.00017899,3]
[406673843,1772062244092,-500.0,0.00017899,3]
[406673844,1772062244102,-500.0,0.00017899,3]
[406673845,1772062244111,-500.0,0.00017899,3]
[406673846,1772062244121,-500.0,0.00017899,3]
[406673847,1772062244130,-500.0,0.00017899,3]
[406673848,1772062244140,-693.3919763,0.00017899,3]
[406673849,1772062244149,-500.0,0.00017899,3]
[406673850,1772062244159,-484.51217363,0.00017899,3]
[406673851,1772062244169,-719.04747942,0.00017899,3]
[406673852,1772062244179,-745.65223616,0.00017899,3]
[406673853,1772062244189,-773.2413689,0.00017899,3]
[406673854,1772062244198,-801.85129955,0.00017899,3]
[406673855,1772062244208,-831.51979763,0.00017899,3]
[406673856,1772062244217,-862.28603014,0.00017899,3]
[406673857,1772062244226,-350.04115682,0.00017899,3]
[406673858,1772062244236,-500.0,0.00017899,3]
[406673859,1772062244246,-500.0,0.00017899,3]
[406673860,1772062244255,-500.0,0.00017899,3]
[406673861,1772062244264,-500.0,0.00017899,3]
[406673862,1772062244274,-500.0,0.00017899,3]
[406673863,1772062244283,-500.0,0.00017899,3]
[406673864,1772062244293,-500.0,0.00017899,3]
[406673865,1772062244303,-500.0,0.00017899,3]
[406673866,1772062244312,-500.0,0.00017899,3]
[406673867,1772062244322,-500.0,0.00017899,3]
[406673868,1772062244332,-500.0,0.00017899,3]
[406673869,1772062244341,-8666.0,0.000179,2]
[406673870,1772062244351,-10000.0,0.000179,2]
[406673871,1772062244360,-961.64168307,0.000179,3]
[406673872,1772062244370,-150.0,0.000179,2]
[406673873,1772062244379,-150.0,0.000179,2]
[406673874,1772062244388,-150.0,0.000179,2]
[406673875,1772062244398,-434.37133982,0.000179,2]
[406673876,1772062244407,-161.03271686,0.000179,2]
[406673877,1772062244417,-150.0,0.000179,2]
[406673878,1772062244428,-5797.56365821,0.000179,2]
[406673879,1772062244438,-15982.02222209,0.000179,2]
[406673880,1772062244447,-2430.2403573,0.000179,2]
[406673881,1772062244457,-150.0,0.000179,2]
[406673882,1772062244466,-615.46931515,0.000179,2]
[406673883,1772062244475,-500.0,0.00017918,2]
[406673884,1772062244484,-500.0,0.00017972,2]
[406673885,1772062244494,-150.0,0.00017974,2]
[406673886,1772062244504,-508.88286319,0.00017982,2]
[406673887,1772062244514,-294.0,0.00017985,2]
[406673888,1772062244523,-215.49916035,0.0001799,2]
[406673889,1772062244533,-300.0,0.00017999,2]
[406673890,1772062244542,-300.0,0.00017999,2]
[406673891,1772062244552,-300.0,0.00017999,2]
[406673892,1772062244561,-379.38237266,0.00017999,2]
[406673893,1772062244571,-150.0,0.00018,2]
[406673894,1772062244580,-1219.12,0.00018,2]
[406673895,1772062244590,-920.0,0.00018,2]
[406673896,1772062244599,-1063.963,0.00018,2]
[406673897,1772062244609,-634.479,0.00018,2]
[406673898,1772062244619,-1898417.09847899,0.00018,2]
[406673899,1772062244628,-314638.34138623,0.00018,2]
[406673900,1772062244648,-1418.89648684,0.00018,2]
[406673901,1772062244660,-1015.96867818,0.00018,2]
[406673902,1772062244671,-750.0,0.00018,2]
[406673903,1772062244684,-872.14,0.00018,2]
[406673906,1772062246344,-420.71607381,8.79e-05,2]
[406673907,1772062246353,-162.921,0.00017069,2]
[406673909,1772062246363,-6775.36292619,0.00018,2]
[406673911,1772062246450,-809.74516329,0.00018,2]
[406673912,1772062246625,-1527.92850623,0.00018,2]
[406673913,1772062246637,-5191.61911001,0.00018,2]
[406673937,1772063006186,1262.58,6.514e-05,2]
[406673951,1772063266662,-1762.258,8.354e-05,2]
[406673952,1772063266692,-159.017,8.354e-05,2]
[406673953,1772063266721,-500.0,8.389e-05,2]
[406673954,1772063266743,-1762.258,8.423e-05,2]
[406673955,1772063266755,-159.017,8.423e-05,2]
[406673956,1772063266766,-500.0,8.423e-05,2]
[406673957,1772063266782,-21157.45,8.423e-05,2]
[406673958,1772063302457,-75000.0,8.423e-05,2]
[406674071,1772063432014,-500.0,8.249e-05,2]
[406674074,1772063432024,-2500.0,8.276e-05,2]
[406674077,1772063432033,-500.0,8.304e-05,2]
[406674079,1772063432043,-2249.99994,8.352e-05,2]
[406674081,1772063432054,-250.00006,8.352e-05,2]
[406674083,1772063432064,-1274.9999399,8.352e-05,2]
[406674086,1772063432084,-1225.0000601,8.352e-05,2]
[406674088,1772063432094,-2500.0,8.352e-05,2]
[406674090,1772063432103,-219.84961923,8.359e-05,2]
[406674092,1772063432112,-638.69032067,8.423e-05,2]
[406674094,1772063432125,-401.9880004,8.423e-05,2]
[406674096,1772063432137,-101102.9526941,8.423e-05,2]
[406674103,1772063432200,-308.29206368,8.423e-05,2]
[406674105,1772063432211,-781.86368209,8.423e-05,2]
[406674107,1772063432223,-315.31506907,8.423e-05,2]
[406674121,1772063438472,-981.56,8.423e-05,2]
[406674122,1772063438483,-603.22941727,8.423e-05,2]
[406674123,1772063438494,-414.8476969,8.423e-05,2]
[406674124,1772063438547,-67999.99999999,8.423e-05,2]
[406674125,1772063438559,-9804.82419814,8.423e-05,2]
[406674126,1772063438570,-3015.00009,8.423e-05,2]
[406674127,1772063438581,-14580.878639,8.423e-05,2]
[406674128,1772063438592,-329.15394292,8.423e-05,2]
[406674237,1772063440786,-1700142.67918577,8.423e-05,2]
[406674238,1772063440802,-626.3544,8.424e-05,2]
[406674239,1772063440816,-4132.8248,8.424e-05,2]
[406674241,1772063440829,-78078.7717,8.424e-05,2]
[406674242,1772063440843,-32879.9337,8.689e-05,2]
[406674243,1772063440856,-2200.0,8.7e-05,3]
[406674244,1772063440869,-4500.0,8.8e-05,3]
[406674245,1772063440883,-150.99,8.864e-05,2]
[406674246,1772063440896,-9999.99,8.864e-05,2]
[406674247,1772063440911,-6800.0,8.9e-05,3]
[406674248,1772063440925,-9100.0,9e-05,3]
[406674249,1772063440935,-500.0,9.074e-05,2]
[406674250,1772063440944,-250.0,9.074e-05,2]
[406674251,1772063440954,-2500.0,9.074e-05,2]
[406674252,1772063440964,-250.0,9.189e-05,2]
[406674253,1772063440974,-250.0,9.189e-05,2]
[406674254,1772063441213,-500.0,9.265e-05,2]
[406674255,1772063441234,-500.0,9.265e-05,2]
[406674256,1772063441244,-215.49916035,0.0001,2]
[406674258,1772063441253,-615.46931519,0.000109,2]
[406674259,1772063441263,-615.46931515,0.000109,2]
[406674260,1772063441272,-615.46931515,0.0001106,2]
[406674261,1772063441282,-2479.79963616,0.00011099,2]
[406674262,1772063441292,-2479.79963612,0.00011099,2]
[406674263,1772063441302,-2479.79963612,0.00011099,2]
[406674264,1772063441311,-320.17112252,0.00011167,2]
[406674265,1772063441320,-2479.79963612,0.00011515,2]
[406674266,1772063441330,-615.46931515,0.00012428,2]
[406674267,1772063441339,-2479.79963612,0.00012578,2]
[406674268,1772063441348,-577.6,0.00013435,2]
[406674269,1772063441357,-2479.79963612,0.00013642,2]
[406674270,1772063441367,-5797.56365821,0.00013686,2]
[406674271,1772063441378,-500.0,0.00013698,2]
[406674272,1772063441387,-387.31685331,0.00013698,2]
[406674273,1772063441397,-500.0,0.00013698,2]
[406674274,1772063441408,-500.0,0.00013698,2]
[406674275,1772063441418,-500.0,0.00013698,2]
[406674276,1772063441427,-500.0,0.00013698,2]
[406674277,1772063441436,-500.0,0.00013698,2]
[406674278,1772063441449,-500.0,0.00013698,2]
[406674279,1772063441459,-500.0,0.00013698,2]
[406674280,1772063441468,-269.06190613,0.00013698,2]
[406674281,1772063441477,-500.0,0.00013698,2]
[406674282,1772063441487,-500.0,0.00013698,2]
[406674283,1772063441496,-453.06341333,0.00013698,2]
[406674284,1772063441505,-500.0,0.00013698,2]
[406674285,1772063441515,-500.0,0.00013698,2]
[406674286,1772063441524,-500.0,0.00013698,2]
[406674287,1772063441533,-500.0,0.00013698,2]
[406674288,1772063441543,-500.0,0.00013698,2]
[406674289,1772063441552,-500.0,0.00013698,2]
[406674290,1772063441561,-500.0,0.00013698,2]
[406674291,1772063441571,-500.0,0.00013698,2]
[406674292,1772063441581,-500.0,0.00013698,2]
[406674293,1772063441590,-500.0,0.00013698,2]
[406674294,1772063441600,-200.0,0.00013699,2]
[406674295,1772063441610,-500.0,0.00013699,2]
[406674296,1772063441620,-500.0,0.00013699,2]
[406674297,1772063441631,-500.0,0.00013699,2]
[406674298,1772063441640,-500.0,0.00013699,2]
[406674299,1772063441651,-335.65029794,0.00013699,2]
[406674300,1772063441660,-500.0,0.00013699,2]
[406674301,1772063441670,-163.76963508,0.00013699,2]
[406674302,1772063441680,-500.0,0.00013699,2]
[406674303,1772063441690,-500.0,0.00013699,2]
[406674304,1772063441700,-500.0,0.00013699,2]
[406674305,1772063441709,-500.0,0.00013699,2]
[406674306,1772063441719,-500.0,0.00013699,2]
[406674307,1772063441728,-500.0,0.00013699,2]
[406674308,1772063441737,-500.0,0.00013699,2]
[406674309,1772063441747,-209.669428,0.00013699,2]
[406674310,1772063441756,-500.0,0.00013699,2]
[406674311,1772063441766,-308.64663473,0.00013699,2]
[406674312,1772063441775,-500.0,0.00013699,2]
[406674313,1772063441785,-500.0,0.00013699,2]
[406674314,1772063441798,-500.0,0.00013699,2]
[406674315,1772063441810,-337.75482183,0.00013699,2]
[406674316,1772063441821,-500.0,0.00013699,2]
[406674317,1772063441831,-500.0,0.00013699,2]
[406674318,1772063441843,-500.0,0.00013699,2]
[406674319,1772063441853,-500.0,0.00013699,2]
[406674320,1772063441862,-500.0,0.00013699,2]
[406674321,1772063441873,-163.99667352,0.00013699,2]
[406674322,1772063441883,-278.93340404,0.00013699,2]
[406674323,1772063441892,-500.0,0.00013699,2]
[406674324,1772063441901,-500.0,0.00013699,2]
[406674325,1772063441911,-500.0,0.00013699,2]
[406674326,1772063441921,-500.0,0.00013699,2]
[406674327,1772063441931,-500.0,0.00013699,2]
[406674328,1772063441940,-500.0,0.00013699,2]
[406674329,1772063441950,-620.36908714,0.00013699,2]
[406674330,1772063441960,-500.0,0.00013699,2]
[406674331,1772063441969,-500.0,0.00013699,2]
[406674332,1772063441979,-500.0,0.00013699,2]
[406674333,1772063441989,-162.08719206,0.00013699,2]
[406674334,1772063441998,-160.89687395,0.00013699,2]
[406674335,1772063442007,-500.0,0.00013699,2]
[406674336,1772063442017,-500.0,0.00013699,2]
[406674337,1772063442027,-161.14332278,0.00013699,2]
[406674338,1772063442036,-500.0,0.00013699,2]
[406674339,1772063442046,-500.0,0.00013699,2]
[406674340,1772063442056,-160.16,0.00013699,2]
[406674341,1772063442066,-500.0,0.00013699,2]
[406674342,1772063442076,-500.0,0.00013699,2]
[406674343,1772063442086,-500.0,0.00013699,2]
[406674344,1772063442101,-500.0,0.00013699,2]
[406674345,1772063442111,-500.0,0.00013699,2]
[406674346,1772063442121,-500.0,0.00013699,2]
[406674347,1772063442130,-500.0,0.00013699,2]
[406674348,1772063442139,-500.0,0.00013699,2]
[406674349,1772063442149,-500.0,0.00013699,2]
[406674350,1772063442158,-161.12812418,0.00013699,2]
[406674351,1772063442168,-524.32496394,0.00013699,2]
[406674352,1772063442179,-500.0,0.00013699,2]
[406674353,1772063442188,-500.0,0.00013699,2]
[406674354,1772063442198,-500.0,0.00013699,2]
[406674355,1772063442208,-500.0,0.00013699,2]
[406674356,1772063442218,-500.0,0.00013699,2]
[406674357,1772063442228,-500.0,0.00013699,2]
[406674358,1772063442237,-500.0,0.00013699,2]
[406674359,1772063442246,-500.0,0.00013699,2]
[406674360,1772063442256,-500.0,0.00013699,2]
[406674361,1772063442267,-500.0,0.00013699,2]
[406674362,1772063442277,-500.0,0.00013699,2]
[406674363,1772063442286,-615.46931515,0.00013796,2]
[406674364,1772063442295,-11400.0,0.000139,5]
[406674365,1772063442305,-168.73,0.00014153,2]
[406674366,1772063442314,-1000.0,0.00014247,2]
[406674367,1772063442324,-1000.0,0.00014247,2]
[406674368,1772063442333,-1007.67306464,0.00014247,2]
[406674369,1772063442343,-1000.0,0.00014247,2]
[406674370,1772063442352,-1000.0,0.00014247,2]
[406674371,1772063442362,-800.44121468,0.00014247,2]
[406674372,1772063442372,-776.00043833,0.00014247,2]
[406674373,1772063442382,-1000.0,0.00014247,2]
[406674374,1772063442392,-1000.0,0.00014247,2]
[406674375,1772063442402,-1000.0,0.00014247,2]
[406674376,1772063442412,-1000.0,0.00014247,2]
[406674377,1772063442421,-467.67692832,0.00014247,2]
[406674378,1772063442430,-351.72128687,0.00014247,2]
[406674379,1772063442439,-1000.0,0.00014247,2]
[406674380,1772063442449,-1008.34147468,0.00014247,2]
[406674381,1772063442459,-1000.0,0.00014247,2]
[406674382,1772063442468,-992.23312849,0.00014247,2]
[406674383,1772063442478,-502.69399529,0.00014247,2]
[406674384,1772063442488,-1000.0,0.00014247,2]
[406674385,1772063442498,-1000.0,0.00014247,2]
[406674386,1772063442507,-1000.0,0.00014247,2]
[406674387,1772063442517,-1000.0,0.00014247,2]
[406674388,1772063442527,-1000.0,0.00014247,2]
[406674389,1772063442536,-1000.0,0.00014247,2]
[406674390,1772063442546,-1000.0,0.00014247,2]
[406674391,1772063442555,-1000.0,0.00014247,2]
[406674392,1772063442565,-185.59048766,0.00014247,2]
[406674393,1772063442574,-1000.0,0.00014247,2]
[406674394,1772063442584,-1000.0,0.00014247,2]
[406674395,1772063442593,-175.96468334,0.00014247,2]
[406674396,1772063442612,-1000.0,0.00014247,2]
[406674397,1772063442623,-1000.0,0.00014247,2]
[406674398,1772063442633,-604.2577825,0.00014247,2]
[406674399,1772063442643,-1000.0,0.00014247,2]
[406674400,1772063442652,-1000.0,0.00014247,2]
[406674401,1772063442663,-502.589699,0.00014247,2]
[406674402,1772063442672,-1004.88674942,0.00014247,2]
[406674403,1772063442682,-374.88076834,0.00014247,2]
[406674404,1772063442692,-1000.0,0.00014247,2]
[406674405,1772063442702,-1000.0,0.00014247,2]
[406674406,1772063442712,-1000.0,0.00014247,2]
[406674407,1772063442722,-1000.0,0.00014247,2]
[406674408,1772063442732,-1000.0,0.00014247,2]
[406674409,1772063442741,-380.44800806,0.00014247,2]
[406674410,1772063442751,-1000.0,0.00014247,2]
[406674411,1772063442761,-1000.0,0.00014247,2]
[406674412,1772063442771,-1000.0,0.00014247,2]
[406674413,1772063442781,-500.72491405,0.00014247,2]
[406674414,1772063442792,-1000.0,0.00014247,2]
[406674415,1772063442804,-1000.0,0.00014247,2]
[406674416,1772063442815,-1000.0,0.00014247,2]
[406674417,1772063442825,-1000.0,0.00014247,2]
[406674418,1772063442834,-1000.0,0.00014247,2]
[406674419,1772063442845,-503.12005961,0.00014247,2]
[406674420,1772063442855,-1000.0,0.00014558,2]
[406674421,1772063442865,-2479.79963612,0.00014705,2]
[406674422,1772063442876,-5797.56365821,0.00014739,2]
[406674423,1772063442886,-1500.0,0.00014795,2]
[406674424,1772063442896,-1500.0,0.00014795,2]
[406674426,1772063442906,-1505.84689332,0.00014795,2]
[406674428,1772063442915,-1500.0,0.00014795,2]
[406674429,1772063442925,-500.0,0.0001489,2]
[406674430,1772063442935,-250.0,0.00015,2]
[406674431,1772063442944,-615.46931515,0.00015164,2]
[406674432,1772063442954,-160.0,0.00015207,2]
[406674433,1772063442964,-173.91437885,0.00015207,2]
[406674434,1772063442977,-2000.0,0.00015342,2]
[406674435,1772063442987,-1000.0,0.00015507,2]
[406674436,1772063442997,-2479.79963612,0.00015769,2]
[406674437,1772063443006,-5797.56365821,0.00015791,2]
[406674438,1772063443017,-2500.0,0.0001589,2]
[406674439,1772063443026,-1000.0,0.00015895,2]
[406674440,1772063443036,-173.91437885,0.00016,3]
[406674441,1772063443046,-1090.23295473,0.0001621,2]
[406674442,1772063443056,-313.10078252,0.00016245,2]
[406674443,1772063443066,-451.05717512,0.00016245,2]
[406674444,1772063443075,-356.688365,0.00016245,2]
[406674445,1772063443085,-1000.0,0.00016282,2]
[406674446,1772063443094,-500.0,0.00016356,2]
[406674447,1772063443104,-500.0,0.00016356,2]
[406674448,1772063443114,-1000.0,0.00016378,2]
[406674449,1772063443125,-491.0,0.00016438,2]
[406674450,1772063443135,-1000.0,0.00016438,2]
[406674451,1772063443144,-1187.89476674,0.00016438,2]
[406674452,1772063443154,-491.0,0.00016493,2]
[406674453,1772063443168,-615.46931515,0.00016532,2]
[406674454,1772063443178,-491.0,0.00016548,2]
[406674455,1772063443189,-491.0,0.00016602,2]
[406674456,1772063443199,-500.0,0.00016604,3]
[406674457,1772063443208,-491.0,0.00016657,2]
[406674458,1772063443218,-1000.0,0.0001667,2]
[406674459,1772063443228,-491.0,0.00016712,2]
[406674460,1772063443238,-1017.2,0.00016712,2]
[406674461,1772063443248,-1000.0,0.00016712,2]
[406674462,1772063443258,-167.0,0.00016712,2]
[406674463,1772063443268,-952.0,0.0001672,2]
[406674464,1772063443278,-188.0,0.0001672,2]
[406674465,1772063443288,-491.0,0.00016767,2]
[406674466,1772063443298,-491.0,0.00016822,2]
[406674467,1772063443308,-2479.79963612,0.00016832,2]
[406674468,1772063443318,-5797.56365821,0.00016844,2]
[406674469,1772063443328,-491.0,0.00016876,2]
[406674470,1772063443337,-491.0,0.00016931,2]
[406674471,1772063443347,-312.0,0.0001695,2]
[406674472,1772063443357,-491.0,0.00016986,2]
[406674473,1772063443370,-1017.2,0.00016986,2]
[406674474,1772063443380,-1193.0,0.00016986,2]
[406674475,1772063443391,-500.0,0.00017,7]
[406674476,1772063443401,-500.0,0.00017,7]
[406674477,1772063443411,-500.0,0.00017,7]
[406674478,1772063443421,-500.0,0.00017,7]
[406674479,1772063443431,-162.78,0.00017,7]
[406674480,1772063443441,-300.0,0.00017,2]
[406674481,1772063443451,-500.0,0.00017,2]
[406674482,1772063443461,-364.33297037,0.00017,2]
[406674483,1772063443470,-312.0,0.00017004,2]
[406674484,1772063443480,-491.0,0.00017041,2]
[406674485,1772063443490,-1000.0,0.00017058,2]
[406674486,1772063443499,-491.0,0.00017096,2]
[406674487,1772063443509,-277.35679052,0.00017099,2]
[406674488,1772063443519,-491.0,0.0001715,2]
[406674489,1772063443531,-312.0,0.00017171,2]
[406674490,1772063443540,-312.0,0.00017199,2]
[406674491,1772063443550,-491.0,0.00017205,2]
[406674492,1772063443563,-312.0,0.00017224,2]
[406674493,1772063443573,-491.0,0.0001726,2]
[406674494,1772063443582,-1017.2,0.0001726,2]
[406674495,1772063443592,-678.0,0.00017279,2]
[406674496,1772063443602,-491.0,0.00017315,2]
[406674497,1772063443612,-160.0,0.0001736,2]
[406674498,1772063443623,-844.0,0.0001736,2]
[406674499,1772063443633,-844.0,0.0001736,2]
[406674500,1772063443644,-312.0,0.00017364,2]
[406674501,1772063443654,-491.0,0.0001737,2]
[406674502,1772063443664,-491.0,0.00017424,2]
[406674503,1772063443674,-312.0,0.00017433,2]
[406674504,1772063443684,-491.0,0.00017479,2]
[406674505,1772063443694,-2200.0,0.000175,6]
[406674506,1772063443703,-678.0,0.00017513,2]
[406674507,1772063443713,-491.0,0.00017534,2]
[406674508,1772063443723,-1017.2,0.00017534,2]
[406674509,1772063443734,-491.0,0.00017589,2]
[406674510,1772063443743,-6275.2666364,0.00017591,2]
[406674511,1772063443756,-11565.8346394,0.00017591,2]
[406674512,1772063443766,-2200.0,0.000176,6]
[406674513,1772063443775,-678.0,0.00017602,2]
[406674514,1772063443785,-678.0,0.00017635,2]
[406674515,1772063443795,-1048.48297969,0.0001764,2]
[406674516,1772063443808,-1624.34306235,0.0001764,2]
[406674517,1772063443818,-1725.32718527,0.0001764,2]
[406674518,1772063443827,-491.0,0.00017643,2]
[406674519,1772063443839,-287.61899177,0.00017647,2]
[406674520,1772063443849,-678.0,0.00017677,2]
[406674521,1772063443858,-844.0,0.0001768,2]
[406674522,1772063443868,-507.0,0.00017698,2]
[406674523,1772063443880,-2200.0,0.000177,6]
[406674524,1772063443890,-177.46,0.00017726,2]
[406674525,1772063443901,-678.0,0.00017762,2]
[406674526,1772063443910,-2200.0,0.000178,6]
[406674527,1772063443920,-1017.2,0.00017808,2]
[406674528,1772063443930,-500.0,0.00017808,2]
[406674529,1772063443940,-810.62472783,0.0001782,10]
[406674530,1772063444115,-1892.15877,0.0001782,2]
[406674531,1772063444126,-1892.15877,0.0001782,2]
[406674532,1772063444136,-1892.15877,0.0001782,2]
[406674533,1772063444146,-1892.15878,0.0001782,2]
[406674534,1772063444156,-2568.50969261,0.0001783,2]
[406674535,1772063444166,-678.0,0.00017838,2]
[406674536,1772063444176,-200.0,0.00017856,2]
[406674537,1772063444186,-500.0,0.00017863,2]
[406674538,1772063444196,-678.0,0.00017883,2]
[406674539,1772063444206,-5797.56365821,0.00017896,2]
[406674540,1772063444216,-2479.79963612,0.00017896,2]
[406674541,1772063444225,-15982.02222209,0.00017896,2]
[406674542,1772063444234,-280.47738254,0.00017896,2]
[406674543,1772063444244,-15982.02222209,0.00017898,2]
[406674544,1772063444253,-500.0,0.00017899,3]
[406674545,1772063444263,-500.0,0.00017899,3]
[406674546,1772063444272,-500.0,0.00017899,3]
[406674547,1772063444282,-500.0,0.00017899,3]
[406674548,1772063444291,-500.0,0.00017899,3]
[406674549,1772063444308,-500.0,0.00017899,3]
[406674550,1772063444320,-500.0,0.00017899,3]
[406674551,1772063444330,-484.51217363,0.00017899,3]
[406674552,1772063444341,-693.3919763,0.00017899,3]
[406674553,1772063444351,-719.04747942,0.00017899,3]
[406674554,1772063444360,-745.65223616,0.00017899,3]
[406674555,1772063444370,-773.2413689,0.00017899,3]
[406674556,1772063444382,-801.85129955,0.00017899,3]
[406674557,1772063444392,-350.04115682,0.00017899,3]
[406674558,1772063444401,-831.51979763,0.00017899,3]
[406674559,1772063444411,-862.28603014,0.00017899,3]
[406674560,1772063444421,-500.0,0.00017899,3]
[406674561,1772063444430,-500.0,0.00017899,3]
[406674562,1772063444440,-500.0,0.00017899,3]
[406674563,1772063444450,-500.0,0.00017899,3]
[406674564,1772063444460,-500.0,0.00017899,3]
[406674565,1772063444470,-500.0,0.00017899,3]
[406674566,1772063444480,-500.0,0.00017899,3]
[406674567,1772063444490,-500.0,0.00017899,3]
[406674568,1772063444500,-500.0,0.00017899,3]
[406674569,1772063444510,-500.0,0.00017899,3]
[406674570,1772063444520,-500.0,0.00017899,3]
[406674571,1772063444529,-961.64168307,0.000179,3]
[406674572,1772063444540,-3121.0,0.000179,6]
[406674573,1772063444550,-615.46931515,0.000179,2]
[406674574,1772063444560,-15982.02222209,0.000179,2]
[406674575,1772063444571,-9087.0,0.000179,2]
[406674576,1772063444581,-500.0,0.00017918,2]
[406674577,1772063444591,-285.0,0.0001797,2]
[406674578,1772063444600,-2843.0,0.00017972,2]
[406674579,1772063444610,-500.0,0.00017972,2]
[406674580,1772063444621,-508.88286319,0.00017982,2]
[406674581,1772063444632,-215.49916035,0.0001799,2]
[406674582,1772063444643,-215.49916035,0.0001799,2]
[406674583,1772063444653,-30000.0,0.00017996,2]
[406674584,1772063444662,-27441.91732024,0.00017996,3]
[406674585,1772063444672,-6953.23797751,0.00017996,4]
[406674586,1772063444682,-58734.7367991,0.00017996,2]
[406674587,1772063444696,-843.8652307,0.00017996,2]
[406674588,1772063444705,-19578.2455999,0.00017996,2]
[406674589,1772063444715,-868278.0692472,0.00017996,2]
[406674590,1772063444725,-151.0,0.00017996,2]
[406674591,1772063444735,-7467.1207244,0.00017996,2]
[406674592,1772063444745,-173.256273,0.00017996,2]